bitfinex-derivatives/quotes_BTCF0:USTF0_20251230
["timestamp","ask_amount","ask_price","bid_price","bid_amount"]
[1767096494600,0.02423419,88008.0,87995.0,0.0113787]
[1767096494800,0.02423419,88007.0,87995.0,0.0113787]
[1767096495000,0.02423419,88006.0,87995.0,0.0113787]
[1767096495203,0.02423419,88005.0,87995.0,0.0113787]
[1767096495402,0.02423419,88004.0,87995.0,0.0113787]
[1767096495596,0.02423419,88003.0,87995.0,0.0113787]
[1767096495800,0.01154675,88014.0,87995.0,0.0113787]
[1767096495999,0.02423386,88013.0,87995.0,0.0113787]
[1767096496306,0.02423386,88012.0,87995.0,0.0113787]
[1767096496515,0.02423386,88011.0,87995.0,0.0113787]
[1767096496698,0.02423386,88010.0,87995.0,0.0113787]
[1767096496898,0.02423386,88009.0,87995.0,0.0113787]
[1767096497099,0.02423386,88008.0,87995.0,0.0113787]
[1767096497399,0.02423386,88007.0,87995.0,0.0113787]
[1767096497598,0.02423386,88006.0,87995.0,0.0113787]
[1767096497899,0.02423386,88005.0,87995.0,0.0113787]
[1767096498100,0.02423386,88004.0,87995.0,0.0113787]
[1767096498301,0.02423386,88003.0,87995.0,0.0113787]
[1767096498595,0.05696,88012.0,87995.0,0.0113787]
[1767096498795,0.02423365,88011.0,87995.0,0.0113787]
[1767096499010,0.02423365,88010.0,87995.0,0.0113787]
[1767096499217,0.02423365,88009.0,87994.0,0.05696]
[1767096499402,0.02423365,88008.0,87994.0,0.05696]
[1767096499605,0.02423365,88007.0,87994.0,0.05696]
[1767096499808,0.02423365,88006.0,87994.0,0.05696]
[1767096500110,0.02423365,88005.0,87994.0,0.05696]
[1767096500306,0.02423365,88004.0,87994.0,0.05696]
[1767096500504,0.02423365,88003.0,87994.0,0.05696]
[1767096500704,0.01154675,88014.0,87994.0,0.05696]
[1767096501006,0.02423368,88013.0,87994.0,0.05696]
[1767096501205,0.02423368,88012.0,87994.0,0.05696]
[1767096501405,0.02423368,88011.0,87994.0,0.05696]
[1767096501611,0.02423368,88010.0,87994.0,0.05696]
[1767096501804,0.02423368,88009.0,87994.0,0.05696]
[1767096502109,0.02423368,88008.0,87994.0,0.05696]
[1767096502310,0.02423368,88007.0,87994.0,0.05696]
[1767096502501,0.02423368,88006.0,87994.0,0.05696]
[1767096502704,0.02423368,88005.0,87994.0,0.05696]
[1767096502904,0.02423368,88004.0,87994.0,0.05696]
[1767096503104,0.02423368,88003.0,87994.0,0.05696]
[1767096503402,0.01154675,88014.0,87994.0,0.05696]
[1767096503603,0.02423399,88013.0,87994.0,0.05696]
[1767096503905,0.02423399,88012.0,87994.0,0.05696]
[1767096504106,0.02423399,88011.0,87994.0,0.05696]
[1767096504307,0.02423399,88010.0,87994.0,0.05696]
[1767096504514,0.02423399,88009.0,87994.0,0.05696]
[1767096504812,0.02423399,88008.0,87994.0,0.05696]
[1767096505011,0.02423399,88007.0,87994.0,0.05696]
[1767096505211,0.02423399,88006.0,87994.0,0.05696]
[1767096505412,0.02423399,88005.0,87994.0,0.05696]
[1767096505613,0.02423399,88004.0,87994.0,0.05696]
[1767096505916,0.02423399,88003.0,87994.0,0.0683389]
[1767096506217,0.09668,88012.0,87994.0,0.0683389]
[1767096506400,0.02423463,88011.0,87994.0,0.10187122]
[1767096506605,0.02423463,88010.0,87994.0,0.10187122]
[1767096506801,0.02423463,88009.0,87994.0,0.10187122]
[1767096507003,0.02423463,88008.0,87994.0,0.10187122]
[1767096507204,0.02423463,88007.0,87997.0,0.0113784]
[1767096507511,0.02423463,88006.0,87997.0,0.0113784]
[1767096507711,0.02423463,88005.0,87997.0,0.0113784]
[1767096507911,0.02423463,88004.0,87997.0,0.0113784]
[1767096508112,0.09668,88012.0,87997.0,0.0113784]
[1767096508316,0.0242337,88011.0,87997.0,0.0113784]
[1767096508509,0.0242337,88010.0,87997.0,0.0113784]
[1767096508705,0.0242337,88009.0,87994.0,0.10187122]
[1767096508905,0.0242337,88008.0,87994.0,0.10187122]
[1767096509117,0.0242337,88007.0,87994.0,0.10187122]
[1767096509316,0.0242337,88006.0,87994.0,0.10187122]
[1767096509616,0.0242337,88005.0,87994.0,0.10187122]
[1767096509914,0.0242337,88004.0,87994.0,0.10187122]
[1767096510118,0.1080567,88012.0,87994.0,0.10187122]
[1767096510316,0.02423384,88011.0,87994.0,0.10187122]
[1767096510517,0.02423384,88010.0,87994.0,0.10187122]
[1767096510718,0.02423384,88009.0,87994.0,0.10187122]
[1767096510913,0.02423384,88008.0,87994.0,0.10187122]
[1767096511115,0.02423384,88007.0,87994.0,0.10187122]
[1767096511310,0.02423384,88006.0,87994.0,0.10187122]
[1767096511510,0.02423384,88005.0,87994.0,0.10187122]
[1767096511717,0.02423384,88004.0,87994.0,0.10187122]
[1767096512016,0.1080567,88012.0,87994.0,0.10187122]
[1767096512218,0.02423385,88011.0,87994.0,0.10187122]
[1767096512516,0.02423385,88010.0,87994.0,0.10187122]
[1767096512815,0.02423385,88009.0,87994.0,0.10187122]
[1767096513017,0.02423385,88008.0,87994.0,0.10187122]
[1767096513216,0.02423385,88007.0,87994.0,0.10187122]
[1767096513418,0.02423385,88006.0,87994.0,0.10187122]
[1767096513621,0.02423385,88005.0,87994.0,0.10187122]
[1767096513812,0.02423385,88004.0,87994.0,0.10187122]
[1767096514113,0.1080567,88012.0,87994.0,0.10187122]
[1767096514312,0.02423155,88011.0,87994.0,0.10187122]
[1767096514513,0.02423155,88010.0,87994.0,0.10187122]
[1767096514710,0.02423155,88009.0,87994.0,0.10187122]
[1767096514916,0.02423155,88008.0,87994.0,0.10187122]
[1767096515121,0.02423155,88007.0,87994.0,0.10187122]
[1767096515317,0.02423155,88006.0,87994.0,0.10187122]
[1767096515512,0.02423155,88005.0,87994.0,0.10187122]
[1767096515717,0.02423155,88004.0,87994.0,0.10187122]
[1767096516021,0.02423155,88003.0,87994.0,0.10187122]
[1767096516225,0.0113769,88010.0,87994.0,0.10187122]
[1767096516521,0.02423179,88009.0,87994.0,0.10187122]
[1767096516721,0.02423179,88008.0,87994.0,0.10187122]
[1767096516921,0.02423179,88007.0,87994.0,0.10187122]
[1767096517124,0.02423179,88006.0,87994.0,0.10187122]
[1767096517322,0.02423179,88005.0,87994.0,0.10187122]
[1767096517525,0.02423179,88004.0,87994.0,0.10187122]
[1767096517825,0.02423179,88003.0,87994.0,0.10187122]
[1767096518018,0.0113769,88010.0,87994.0,0.10187122]
[1767096518217,0.02423176,88009.0,87994.0,0.10187122]
[1767096518518,0.02423176,88008.0,87994.0,0.10187122]
[1767096518718,0.02423176,88007.0,87994.0,0.10187122]
[1767096518913,0.02423176,88006.0,87994.0,0.10187122]
[1767096519124,0.02423176,88005.0,87994.0,0.10187122]
[1767096519329,0.02423176,88004.0,87994.0,0.10187122]
[1767096519630,0.02423176,88003.0,87994.0,0.10187122]
[1767096519824,0.02423176,88002.0,87994.0,0.05696]
[1767096520136,0.05471646,88005.0,87994.0,0.05696]
[1767096520427,0.02423102,88004.0,87994.0,0.05696]
[1767096520627,0.02423102,88003.0,87994.0,0.05696]
[1767096520826,0.02423102,88002.0,87994.0,0.05696]
[1767096521026,0.05471646,88005.0,87994.0,0.05696]
[1767096521227,0.02423104,88004.0,87994.0,0.05696]
[1767096521431,0.05471646,88005.0,87978.0,0.06115837]
[1767096521432,0.0113783,87999.0,87978.0,0.06115837]
[1767096521624,0.02423104,87998.0,87978.0,0.0113809]
[1767096521824,0.02423104,87997.0,87979.0,0.15364]
[1767096522033,0.02423104,87996.0,87980.0,0.05696]
[1767096522222,0.02423104,87995.0,87980.0,0.05696]
[1767096522423,0.02423104,87994.0,87981.0,0.15364]
[1767096522618,0.00017045,87997.0,87974.0,0.04522819]
[1767096522619,0.0113794,87990.0,87982.0,0.05696]
[1767096522826,0.02397574,87989.0,87982.0,0.05696]
[1767096523126,0.0113791,87993.0,87982.0,0.05696]
[1767096523433,0.00017045,87997.0,87982.0,0.05696]
[1767096523434,0.02396829,87992.0,87982.0,0.05696]
[1767096523618,0.02396829,87991.0,87982.0,0.05696]
[1767096523823,0.02396829,87990.0,87982.0,0.05696]
[1767096524023,0.02396829,87989.0,87982.0,0.05696]
[1767096524223,0.02396829,87988.0,87982.0,0.05696]
[1767096524424,0.00017045,87997.0,87982.0,0.05696]
[1767096524624,0.02396001,87996.0,87982.0,0.05696]
[1767096524828,0.02396001,87995.0,87982.0,0.05696]
[1767096525028,0.02396001,87994.0,87982.0,0.05696]
[1767096525335,0.02396001,87993.0,87982.0,0.05696]
[1767096525534,0.02396001,87992.0,87982.0,0.05696]
[1767096525734,0.02396001,87991.0,87982.0,0.05696]
[1767096526037,0.02396001,87990.0,87982.0,0.05696]
[1767096526229,0.02396001,87989.0,87982.0,0.05696]
[1767096526429,0.00017045,87997.0,87982.0,0.05696]
[1767096526632,0.02395037,87996.0,87982.0,0.05696]
[1767096526828,0.02395037,87995.0,87982.0,0.05696]
[1767096527029,0.02395037,87994.0,87983.0,0.05696]
[1767096527337,0.02395037,87993.0,87983.0,0.05696]
[1767096527637,0.02395037,87992.0,87983.0,0.05696]
[1767096527839,0.02395037,87991.0,87983.0,0.05696]
[1767096528038,0.02395037,87990.0,87978.0,0.0113809]
[1767096528240,0.01154905,87997.0,87979.0,0.15368]
[1767096528439,0.02394371,87996.0,87979.0,0.15368]
[1767096528640,0.02394371,87995.0,87979.0,0.15368]
[1767096528932,0.02394371,87994.0,87979.0,0.15368]
[1767096529241,0.02394371,87993.0,87979.0,0.15368]
[1767096529538,0.02394371,87992.0,87979.0,0.15368]
[1767096529740,0.02394371,87991.0,87979.0,0.15368]
[1767096530036,0.02394371,87990.0,87979.0,0.15368]
[1767096530233,0.05409853,87995.0,87968.0,0.00227357]
[1767096530437,0.0113799,87987.0,87968.0,0.00227357]
[1767096530633,0.02393867,87986.0,87969.0,0.15368]
[1767096530829,0.02393867,87985.0,87969.0,0.15368]
[1767096531043,0.02393867,87984.0,87969.0,0.15368]
[1767096531245,0.02393867,87983.0,87969.0,0.1650621]
[1767096531541,0.09672,87989.0,87969.0,0.1650621]
[1767096531736,0.02393191,87988.0,87969.0,0.1650621]
[1767096531937,0.09672,87989.0,87969.0,0.1650621]
[1767096532124,0.02393191,87988.0,87969.0,0.1650621]
[1767096532329,0.09672,87989.0,87971.0,0.0113819]
[1767096532732,0.15368,87989.0,87973.0,0.0113815]
[1767096535144,0.15368,87989.0,87970.0,0.0113819]
[1767096536348,0.15368,87989.0,87969.0,0.1650621]
[1767096536840,0.0113799,87987.0,87969.0,0.15368]
[1767096537740,0.15368,87989.0,87969.0,0.15368]
[1767096537929,0.15368,87989.0,87972.0,0.0113817]
[1767096540847,0.15368,87989.0,87971.0,0.0683418]
[1767096541043,0.15368,87989.0,87971.0,0.05696]
[1767096542451,0.1650596,87989.0,87971.0,0.05696]
[1767096542651,0.0113799,87987.0,87971.0,0.05696]
[1767096542857,0.15379956,87981.0,87971.0,0.05696]
[1767096545051,0.0113809,87979.0,87968.0,0.00227357]
[1767096545351,0.15379956,87978.0,87967.0,0.05696]
[1767096550649,0.15379956,87980.0,87967.0,0.05696]
[1767096556253,0.20836174,87980.0,87967.0,0.05696]
[1767096556445,0.15379956,87980.0,87967.0,0.05696]
[1767096560459,0.02398516,87979.0,87967.0,0.05696]
[1767096560664,0.02398516,87979.0,87957.0,0.06115837]
[1767096560665,0.15379956,87977.0,87957.0,0.06115837]
[1767096560855,0.15379956,87967.0,87958.0,0.15368]
[1767096561159,0.15379956,87967.0,87957.0,0.05696]
[1767096561667,0.15379956,87967.0,87945.0,0.06115837]
[1767096561668,0.0113827,87965.0,87956.0,0.10287279]
[1767096561958,0.15379956,87967.0,87956.0,0.10287279]
[1767096562162,0.03535342,87966.0,87956.0,0.05696]
[1767096562351,0.0113825,87966.0,87956.0,0.05696]
[1767096562849,0.0113828,87964.0,87952.0,0.05696]
[1767096563253,0.15379956,87962.0,87952.0,0.05696]
[1767096563757,0.05696,87965.0,87952.0,0.05696]
[1767096563958,9.733e-05,87964.0,87952.0,0.05696]
[1767096568367,0.15379956,87962.0,87952.0,0.05696]
[1767096568865,9.733e-05,87964.0,87952.0,0.05696]
[1767096577874,9.733e-05,87964.0,87946.0,0.0113851]
[1767096578079,9.733e-05,87964.0,87948.0,0.05696]
[1767096579277,9.733e-05,87964.0,87948.0,0.0683448]
[1767096579772,0.0113809,87979.0,87964.0,4e-05]
[1767096579977,0.08087984,87978.0,87960.0,0.15379956]
[1767096580186,0.02391984,87977.0,87960.0,0.15379956]
[1767096584281,0.02391984,87977.0,87961.0,0.0113832]
[1767096584578,0.05713045,87981.0,87960.0,0.15379956]
[1767096584779,0.00017045,87981.0,87960.0,0.15379956]
[1767096585080,0.05713045,87981.0,87964.0,0.0113827]
[1767096585277,0.05713045,87981.0,87964.0,0.0683427]
[1767096585870,0.05713045,87981.0,87964.0,0.05696]
[1767096586176,0.15379956,87980.0,87964.0,0.05696]
[1767096587880,0.21075956,87980.0,87964.0,0.05696]
[1767096590773,0.15379956,87980.0,87964.0,0.05696]
[1767096590974,0.05696,87979.0,87964.0,0.05696]
[1767096593783,0.15379956,87980.0,87964.0,0.05696]
[1767096593972,0.05696,87979.0,87964.0,0.05696]
[1767096594174,0.05696,87979.0,87964.0,0.0683428]
[1767096596472,0.02378152,87978.0,87964.0,0.0683428]
[1767096596673,0.02378152,87977.0,87964.0,0.0683428]
[1767096596881,0.02378152,87976.0,87964.0,0.0683428]
[1767096597073,0.02378152,87975.0,87964.0,0.0683428]
[1767096597272,0.02378152,87974.0,87964.0,0.0683428]
[1767096597472,0.02378152,87973.0,87964.0,0.0683428]
[1767096597690,0.02378152,87972.0,87964.0,0.0683428]
[1767096597879,0.05696,87978.0,87964.0,0.0683428]
[1767096598076,0.02378151,87977.0,87964.0,0.0683428]
[1767096598275,0.02378151,87976.0,87964.0,0.0683428]
[1767096598576,0.02378151,87975.0,87964.0,0.0683428]
[1767096598887,0.02378151,87974.0,87964.0,0.0683428]
[1767096599076,0.02378151,87973.0,87964.0,0.0683428]
[1767096599273,0.05696,87978.0,87964.0,0.05696]
[1767096599478,0.0113779,88002.0,87983.0,0.0113803]
[1767096599678,0.05696,88001.0,87983.0,0.0683403]
[1767096599977,0.15379956,88000.0,87983.0,0.0683403]
[1767096600485,0.00227279,87998.0,87983.0,0.0683403]
[1767096601084,0.05696,88005.0,87983.0,0.05696]
[1767096601384,0.05696,88005.0,87985.0,0.01138]
[1767096602193,0.00017045,88004.0,87985.0,0.01138]
[1767096602483,0.0113766,88013.0,87994.0,0.0113789]
[1767096602677,0.0683366,88013.0,87995.0,0.05696]
[1767096602878,0.05696,88013.0,87995.0,0.05696]
[1767096603580,0.05713045,88013.0,87995.0,0.05696]
[1767096603779,0.00017045,88013.0,87996.0,0.0113786]
[1767096604275,0.11187124,88017.0,87995.0,0.05696]
[1767096604480,0.05491124,88017.0,87995.0,0.05696]
[1767096604888,0.05491124,88017.0,87999.0,0.0113781]
[1767096605283,0.05508169,88017.0,87999.0,0.0113781]
[1767096606090,0.05508169,88017.0,88002.0,0.0113778]
[1767096606387,0.00017045,88017.0,88003.0,0.05696]
[1767096607986,0.00017045,88017.0,88004.0,0.09672]
[1767096608291,4.5e-07,88017.0,88005.0,0.0113775]
[1767096608486,0.0113742,88031.0,88005.0,0.0113775]
[1767096608487,0.05696,88026.0,88005.0,0.0113775]
[1767096609603,0.00017045,88024.0,88005.0,0.0113775]
[1767096610393,0.00017045,88024.0,88008.0,0.0113771]
[1767096610888,0.0113735,88036.0,88004.0,0.09672]
[1767096611091,0.0113735,88036.0,88006.0,0.0113773]
[1767096611286,0.0113735,88036.0,88009.0,0.011377]
[1767096611694,0.15368,88038.0,88009.0,0.011377]
[1767096611993,0.00011366,88027.0,88009.0,0.011377]
[1767096616296,0.00011366,88027.0,88011.0,0.0113766]
[1767096616601,0.00011366,88027.0,88012.0,0.05696]
[1767096617994,0.15368,88038.0,88012.0,0.05696]
[1767096618200,0.09672,88038.0,88016.0,0.011376]
[1767096618384,0.09672,88038.0,88024.0,0.011375]
[1767096618585,0.05388956,88045.0,88025.0,0.0113749]
[1767096619089,0.16248164,88046.0,88025.0,0.0113749]
[1767096620993,0.1080523,88046.0,88025.0,0.0113749]
[1767096621195,0.0113725,88044.0,88025.0,0.0113749]
[1767096621793,0.0113725,88044.0,88023.0,0.00017045]
[1767096625102,0.0113714,88053.0,88031.0,0.011374]
[1767096625295,0.05436215,88056.0,88035.0,0.0113735]
[1767096625500,0.00492,88058.0,88036.0,0.09668]
[1767096625893,0.0162908,88058.0,88036.0,0.09668]
[1767096626099,0.0113713,88054.0,88036.0,0.09668]
[1767096629805,0.00492,88058.0,88037.0,0.0113733]
[1767096629998,0.00492,88058.0,88036.0,0.09668]
[1767096629999,0.00492,88058.0,88039.0,0.011373]
[1767096630199,0.00492,88058.0,88040.0,0.05692]
[1767096631295,0.0113708,88057.0,88040.0,0.05692]
[1767096631700,0.00492,88058.0,88040.0,0.05692]
[1767096631897,0.0113697,88066.0,88041.0,0.0113728]
[1767096632194,0.52002953,88070.0,88045.0,0.00017035]
[1767096632395,0.0113703,88061.0,88046.0,0.09668]
[1767096633404,0.0113703,88061.0,88047.0,0.05692]
[1767096637708,0.0113699,88064.0,88047.0,0.05692]
[1767096643011,0.0113695,88067.0,88047.0,0.05692]
[1767096643799,0.0113695,88067.0,88047.0,0.068292]
[1767096644404,0.43471863,88070.0,88049.0,0.0113718]
[1767096646313,0.0113697,88066.0,88047.0,0.05692]
[1767096647709,0.0113693,88069.0,88047.0,0.011372]
[1767096647909,0.0113693,88069.0,88048.0,0.15356]
[1767096648715,0.42334953,88070.0,88049.0,0.0113718]
[1767096648922,0.42334953,88070.0,88048.0,0.15356]
[1767096649122,0.42334953,88070.0,88054.0,0.0113711]
[1767096649323,0.42334953,88070.0,88055.0,0.05692]
[1767096651217,0.42334953,88070.0,88056.0,0.0113709]
[1767096651521,0.05692,88078.0,88060.0,0.0113703]
[1767096651726,0.05692,88078.0,88055.0,0.05692]
[1767096651727,0.0682881,88078.0,88058.0,0.09664]
[1767096651915,0.0113684,88076.0,88058.0,0.09664]
[1767096653122,0.0113671,88086.0,88065.0,0.0113696]
[1767096653311,0.0113671,88086.0,88067.0,0.00017035]
[1767096658825,0.0113676,88082.0,88067.0,0.00017035]
[1767096659221,0.05692,88087.0,88067.0,3.5e-07]
[1767096659528,0.05692,88087.0,88065.0,0.15356]
[1767096659716,0.0113682,88077.0,88058.0,0.04432756]
[1767096659915,0.0113685,88075.0,88058.0,0.04432756]
[1767096660215,0.0113685,88075.0,88059.0,0.15356]
[1767096660428,0.00017,88076.0,88059.0,0.15356]
[1767096660721,0.0115384,88076.0,88058.0,0.04449791]
[1767096660922,0.0115384,88076.0,88059.0,0.15356]
[1767096660923,0.00017,88076.0,88059.0,0.15356]
[1767096661320,0.00017,88076.0,88060.0,0.15347635]
[1767096662624,0.00017,88076.0,88060.0,0.16484675]
[1767096664123,0.00017,88076.0,88060.0,0.15347635]
[1767096664629,0.00017,88076.0,88061.0,0.15356]
[1767096664921,0.0113685,88075.0,88061.0,0.15356]
[1767096665123,0.00017,88076.0,88061.0,0.15356]
[1767096665729,0.00017,88076.0,88061.0,0.1649302]
[1767096666221,0.00017,88076.0,88061.0,0.15356]
[1767096668024,0.00017,88076.0,88062.0,0.0113701]
[1767096668328,0.00017,88076.0,88064.0,0.0113698]
[1767096670923,0.00017,88076.0,88065.0,0.05692]
[1767096676825,0.00017,88076.0,88060.0,0.15347635]
[1767096677026,0.15347635,88070.0,88045.0,0.04092962]
[1767096677227,0.15347635,88062.0,88046.0,0.05692]
[1767096677421,0.15347635,88062.0,88034.0,0.04092962]
[1767096677627,0.15347635,88062.0,88035.0,0.15356]
[1767096678030,0.00017035,88057.0,88040.0,0.00017035]
[1767096678334,0.08150199,88087.0,88047.0,0.3069527]
[1767096678537,0.09828,88086.0,88070.0,0.15347635]
[1767096678839,0.09828,88086.0,88063.0,0.05692]
[1767096679340,0.00017,88083.0,88066.0,0.00017035]
[1767096680542,0.00017,88083.0,88066.0,0.01153985]
[1767096681737,0.00017,88083.0,88070.0,0.15347635]
[1767096681932,0.09664,88094.0,88079.0,0.0113679]
[1767096682438,0.09664,88094.0,88075.0,0.0113683]
[1767096682633,0.09664,88094.0,88077.0,0.0113681]
[1767096683331,0.15347635,88087.0,88066.0,0.00017035]
[1767096683531,0.15347635,88080.0,88066.0,0.00017035]
[1767096683747,0.15347635,88080.0,88066.0,0.05709035]
[1767096683949,0.011368,88079.0,88066.0,0.05709035]
[1767096685138,0.011368,88079.0,88066.0,0.00017035]
[1767096685536,0.15347635,88080.0,88066.0,0.00017035]
[1767096685745,0.0113684,88076.0,88063.0,0.05692]
[1767096685940,0.0113684,88076.0,88060.0,0.09664]
[1767096686932,0.00017035,88077.0,88060.0,0.09664]
[1767096687943,0.0113684,88076.0,88059.0,0.00017035]
[1767096688147,0.05709035,88077.0,88059.0,0.00017035]
[1767096691131,0.06845865,88077.0,88059.0,0.00017035]
[1767096692348,0.05709035,88077.0,88059.0,0.00017035]
[1767096693350,0.05709035,88077.0,88060.0,0.16484675]
[1767096694449,0.15347635,88090.0,88062.0,0.04092962]
[1767096694746,0.15347635,88090.0,88070.0,0.011369]
[1767096694946,0.15347635,88090.0,88070.0,0.068289]
[1767096696643,0.15347635,88090.0,88070.0,0.05692]
[1767096696843,0.16484295,88090.0,88070.0,0.05692]
[1767096698544,0.15347635,88090.0,88070.0,0.068289]
[1767096699146,0.15347635,88090.0,88070.0,0.011369]
[1767096699352,0.15347635,88080.0,88067.0,0.05692]
[1767096699750,0.0113669,88087.0,88067.0,0.05692]
[1767096700452,0.15347635,88080.0,88067.0,0.05692]
[1767096700649,0.15347635,88080.0,88065.0,0.0966]
[1767096700650,0.0113682,88077.0,88065.0,0.0966]
[1767096700849,0.0113682,88077.0,88062.0,0.05692]
[1767096701050,0.0113686,88074.0,88059.0,0.00017035]
[1767096701446,0.15347635,88070.0,88059.0,0.00017035]
[1767096701752,0.21039635,88070.0,88059.0,0.00017035]
[1767096701950,0.0113693,88069.0,88049.0,0.05692]
[1767096702545,0.21039635,88070.0,88049.0,0.05692]
[1767096702760,0.21039635,88070.0,88050.0,0.16484805]
[1767096702961,0.00017035,88069.0,88052.0,0.0113714]
[1767096703864,0.00017035,88069.0,88053.0,0.05946]
[1767096704659,0.05692,88070.0,88053.0,0.05946]
[1767096704660,0.05692,88070.0,88059.0,0.15347635]
[1767096704867,0.05692,88070.0,88060.0,0.0113704]
[1767096705766,0.05692,88070.0,88054.0,0.0113711]
[1767096705962,0.15347635,88070.0,88053.0,0.05946]
[1767096706561,0.15347635,88063.0,88053.0,0.05946]
[1767096706761,0.05692,88065.0,88053.0,0.05946]
[1767096710367,0.05692,88065.0,88025.0,0.0113749]
[1767096710368,0.0113718,88050.0,88025.0,0.0113749]
[1767096710565,0.17791539,88049.0,88031.0,0.011374]
[1767096710869,0.08131539,88048.0,88030.0,0.15347635]
[1767096711072,0.02435539,88047.0,88030.0,0.15347635]
[1767096711273,0.00017035,88047.0,88030.0,0.1536467]
[1767096711466,8.9e-05,88046.0,88030.0,0.1536467]
[1767096711667,8.9e-05,88046.0,88032.0,0.0113739]
[1767096714267,0.0113712,88054.0,88030.0,0.1536467]
[1767096714268,0.011369,88071.0,88036.0,0.15347635]
[1767096714571,0.0113707,88058.0,88040.0,0.15347635]
[1767096714775,0.1779178,88057.0,88034.0,0.0113736]
[1767096714975,0.0243178,88056.0,88034.0,0.0113736]
[1767096715176,0.0243178,88055.0,88034.0,0.0113736]
[1767096715375,0.0243178,88054.0,88036.0,0.0113735]
[1767096715577,0.1536,88057.0,88036.0,0.0113735]
[1767096715881,0.0243121,88056.0,88036.0,0.0113735]
[1767096716172,0.0243121,88055.0,88036.0,0.0113735]
[1767096716479,0.1536,88057.0,88036.0,0.0113735]
[1767096716672,0.02430754,88056.0,88036.0,0.0113735]
[1767096716872,0.02430754,88055.0,88036.0,0.0113735]
[1767096717178,0.1536,88057.0,88036.0,0.0113735]
[1767096717483,0.02430391,88056.0,88036.0,0.0113735]
[1767096717682,0.02430391,88055.0,88036.0,0.0113735]
[1767096717870,0.1536,88057.0,88036.0,0.0113735]
[1767096718075,0.02430391,88056.0,88036.0,0.0113735]
[1767096718374,0.02430391,88055.0,88036.0,0.0113735]
[1767096718574,0.1536,88057.0,88036.0,0.0113735]
[1767096718877,0.02430076,88056.0,88036.0,0.0113735]
[1767096719175,0.1536,88057.0,88036.0,0.0113735]
[1767096719379,0.02429816,88056.0,88036.0,0.0113735]
[1767096719570,0.1536,88057.0,88036.0,0.0113735]
[1767096719771,0.02429816,88056.0,88036.0,0.0113735]
[1767096720070,0.1536,88057.0,88036.0,0.0113735]
[1767096720267,0.02429816,88056.0,88040.0,0.15347635]
[1767096720464,0.05696,88062.0,88047.0,0.15347635]
[1767096720667,0.05696,88062.0,88050.0,0.15347635]
[1767096720870,0.05696,88062.0,88046.0,0.00017035]
[1767096721371,0.05696,88065.0,88050.0,0.15347635]
[1767096722480,0.05696,88065.0,88049.0,0.0113717]
[1767096722874,0.05696,88068.0,88049.0,0.0113717]
[1767096728585,0.05696,88068.0,88052.0,0.0113713]
[1767096728777,0.12018171,88075.0,88052.0,0.0113713]
[1767096728979,0.0113687,88073.0,88052.0,0.0113713]
[1767096729784,0.0113687,88073.0,88049.0,0.0113717]
[1767096730086,0.0113687,88073.0,88052.0,0.0113713]
[1767096731284,0.1649687,88074.0,88046.0,0.00017035]
[1767096731687,0.1649687,88074.0,88053.0,0.0113712]
[1767096732491,0.02457212,88073.0,88053.0,0.0113712]
[1767096732683,0.02457212,88072.0,88053.0,0.0113712]
[1767096732878,0.02457212,88071.0,88046.0,0.00017035]
[1767096733087,0.02457212,88070.0,88046.0,0.00017035]
[1767096733293,0.1536,88074.0,88056.0,0.0113709]
[1767096733294,0.02457212,88069.0,88056.0,0.0113709]
[1767096733488,0.02457212,88068.0,88056.0,0.0113709]
[1767096733689,0.02457212,88067.0,88056.0,0.0113709]
[1767096733882,0.1536,88074.0,88053.0,0.0113712]
[1767096733883,0.02457212,88066.0,88053.0,0.0113712]
[1767096734083,0.02457212,88065.0,88053.0,0.0113712]
[1767096734284,0.1649686,88074.0,88053.0,0.0113712]
[1767096734593,0.0245762,88073.0,88053.0,0.0113712]
[1767096734795,0.0245762,88072.0,88053.0,0.0113712]
[1767096734989,0.0245762,88071.0,88053.0,0.0113712]
[1767096735293,0.0245762,88070.0,88053.0,0.0113712]
[1767096735490,0.0245762,88069.0,88056.0,0.0113708]
[1767096735695,0.0245762,88068.0,88056.0,0.0113708]
[1767096735894,0.0245762,88067.0,88056.0,0.0113708]
[1767096736097,0.0245762,88066.0,88055.0,0.011371]
[1767096736295,0.1536,88074.0,88055.0,0.011371]
[1767096736496,0.02458032,88073.0,88055.0,0.011371]
[1767096736688,0.02458032,88072.0,88055.0,0.011371]
[1767096736889,0.02458032,88071.0,88055.0,0.011371]
[1767096737090,0.02458032,88070.0,88055.0,0.011371]
[1767096737397,0.02458032,88069.0,88055.0,0.011371]
[1767096737587,0.02458032,88068.0,88055.0,0.011371]
[1767096737785,0.02458032,88067.0,88055.0,0.011371]
[1767096737983,0.02458032,88066.0,88055.0,0.011371]
[1767096738187,0.1536,88074.0,88055.0,0.011371]
[1767096738404,0.0245801,88073.0,88055.0,0.011371]
[1767096738591,0.0245801,88072.0,88055.0,0.011371]
[1767096738790,0.0245801,88071.0,88055.0,0.011371]
[1767096739099,0.0245801,88070.0,88055.0,0.011371]
[1767096739293,0.0245801,88069.0,88055.0,0.011371]
[1767096739493,0.0245801,88068.0,88055.0,0.011371]
[1767096739694,0.0245801,88067.0,88055.0,0.011371]
[1767096739897,0.0245801,88066.0,88055.0,0.011371]
[1767096740095,0.1536,88074.0,88055.0,0.011371]
[1767096740295,0.02457988,88073.0,88055.0,0.011371]
[1767096740498,0.02457988,88072.0,88055.0,0.011371]
[1767096740694,0.02457988,88071.0,88055.0,0.011371]
[1767096740890,0.02457988,88070.0,88055.0,0.011371]
[1767096741092,0.02457988,88069.0,88055.0,0.011371]
[1767096741386,0.02457988,88068.0,88055.0,0.011371]
[1767096741587,0.02457988,88067.0,88055.0,0.011371]
[1767096741796,0.02457988,88066.0,88055.0,0.011371]
[1767096741997,0.1536,88074.0,88055.0,0.011371]
[1767096742198,0.02458269,88073.0,88055.0,0.011371]
[1767096742400,0.02458269,88072.0,88055.0,0.011371]
[1767096742599,0.02458269,88071.0,88057.0,0.0113707]
[1767096742799,0.02458269,88070.0,88056.0,0.0113708]
[1767096743000,0.02458269,88069.0,88056.0,0.0113708]
[1767096743306,0.1536,88074.0,88053.0,0.0113712]
[1767096743307,0.02458269,88068.0,88053.0,0.0113712]
[1767096743497,0.02458269,88067.0,88053.0,0.0113712]
[1767096743797,0.02458269,88066.0,88053.0,0.0113712]
[1767096743991,0.0113689,88072.0,88053.0,0.0113712]
[1767096744192,0.0245878,88071.0,88053.0,0.0113712]
[1767096744398,0.0245878,88070.0,88053.0,0.0113712]
[1767096744604,0.0245878,88070.0,88050.0,0.0113715]
[1767096744605,0.0245878,88069.0,88050.0,0.0113715]
[1767096745406,0.02459438,88068.0,88050.0,0.0113715]